Workbook

Sheet Traktor
C1: Sisesta traktori andmed rohelistesse lahtritesse. Pruuni värvi lahtrid arvutatakse automaatselt.
C2: Arvutusmudeli kasutamiseks on vaja traktori mootori või jõuvõtuvõlli (PTO) võimsuskõverat.
C3: Täiendav informatsioon instruktsiooni lehelt.
B4: Traktor
B5: Mudel | C5: CASE IH CX 90 DIESEL | E5: Kütuse tihedus | F5: 0.84 | G5: kg/l
B6: Mass | C6: 3705 | D6: kg | E6: Nimipöörded | F6: =+D14 -> 2200 | G6: 1/min
B7: Tagaratta raadius | C7: 0.744 | D7: m
B10: Mootor
B11: Näitaja | C11: Pöördem. Nm | D11: Moot. Pöörded, 1/min | E11: Kütusekulu, l/h | G11: Kütusekulu, kg/h | H11: Kütuse erikulu, g/kWh | I11: Võimsus, kW
B12: Mmax | C12: 319 | D12: 1400 | E12: 14.1 | G12: =+E12*$F$5 -> 11.844 | H12: =+G12*1000/I12 -> 253.2509377 | I12: =+C12*(D12*2*PI()/60)/1000 -> 46.76784264 | K12: Suurim pöördemoment.
B13: Pmax/P80% | C13: 289 | D13: 2000 | E13: 18 | G13: 15.12 | H13: =+G13*1000/I13 -> 249.8016685 | I13: 60.52801846 | K13: Punkt nimivõimsuse ja suurima pöördemomendi või suurima võimsusmomendi vahel.
B14: Pnim | C14: 258 | D14: 2200 | E14: 18.8 | G14: 15.792 | H14: =+G14*1000/I14 -> 265.6844462 | I14: 59.43893301 | K14: Nimivõimsus.
B15: P85 | C15: 219 | D15: 2272 | E15: 17.5 | G15: 14.7 | H15: =+G15*1000/I15 -> 282.1215589 | I15: 52.10519912 | K15: Osakoormus, näiteks 85% juures.
B16: P25 | C16: 54 | D16: 2336 | E16: 9.6 | G16: 8.064 | H16: =+G16*1000/I16 -> 610.457316 | I16: 13.20976879 | K16: Osakoormus, näiteks 25% juures.
B17: P0 | C17: 0 | D17: 2361 | E17: 6 | G17: 5.04 | I17: 0 | K17: Maksimumpööretel ilma koormuseta.
L19: Kontrolli, et kõverad oleksid sujuvad.
B20: Jõuülekanne | C20: Käik | D20: Nimikiirus, km/h | E20: Suhe
C21: 1 | D21: 2.1 | E21: =+Traktor!$C$7*Traktor!$F$6*PI()/30/D21*3.6 -> 293.8376489 | F21: Veerus „käik“ saate anda käikude nimiväärtused. „Nimikiirus“ veergu kirjutage käikudele vastavad nimikiirused. Ühtlaselt muutuva kiirusega käigukastiga (CVT) saate anda ühtlaselt jagatud väärtused normaalses tööpiirkonnas. Kokku saate 12 käiku..
C22: 2 | D22: 2.6 | E22: =+Traktor!$C$7*Traktor!$F$6*PI()/30/D22*3.6 -> 237.3304087
C23: 3 | D23: 3.7 | E23: =+Traktor!$C$7*Traktor!$F$6*PI()/30/D23*3.6 -> 166.7727196
C24: 4 | D24: 4.5 | E24: =+Traktor!$C$7*Traktor!$F$6*PI()/30/D24*3.6 -> 137.1242361
C25: 5 | D25: 5.5 | E25: =+Traktor!$C$7*Traktor!$F$6*PI()/30/D25*3.6 -> 112.1925568
C26: 6 | D26: 6.7 | E26: =+Traktor!$C$7*Traktor!$F$6*PI()/30/D26*3.6 -> 92.09836756
C27: 7 | D27: 8 | E27: =+Traktor!$C$7*Traktor!$F$6*PI()/30/D27*3.6 -> 77.13238283
C28: 8 | D28: 8.7 | E28: =+Traktor!$C$7*Traktor!$F$6*PI()/30/D28*3.6 -> 70.92632904
C29: 9 | D29: 9.6 | E29: =+Traktor!$C$7*Traktor!$F$6*PI()/30/D29*3.6 -> 64.27698569
C30: 10 | D30: 10.5 | E30: =+Traktor!$C$7*Traktor!$F$6*PI()/30/D30*3.6 -> 58.76752978
C31: 11 | D31: 14 | E31: =+Traktor!$C$7*Traktor!$F$6*PI()/30/D31*3.6 -> 44.07564733
C32: 12 | D32: 16.9 | E32: =+Traktor!$C$7*Traktor!$F$6*PI()/30/D32*3.6 -> 36.51237057

Sheet Künd
B2: Kinnitatud pöördader
B5: Mulla seisund | C5: Vannaste vahe "(toll) | D5: Vagude arv | E5: Töösügavus, cm | F5: Mullal sõidetavus | G5: Kalle ˚ | H5: Lisaraskus, kg | I5: Kaalujaotus | J5: Töölaius | M5: Tuloksia
D6: =+D8 -> 3 | E6: =+E8 -> 20 | G6: =+G8 -> 0 | H6: =+H8 -> 501 | J6: =+O10 -> 1.0668 | K6: m
M7: f | O7: =+IF(F12=1,0.15,IF(F12=2,0.1,0.07)) -> 0.1
B8: Raske | C8: 12 | D8: 3 | E8: 20 | F8: Halb | G8: 0 | H8: 501 | I8: Puudub | M8: Tr kulkuvastus | O8: =+Traktor!C6*9.81/1000*O7 -> 3.634605 | P8: kN
B9: Keskmine | C9: 14 | F9: Normaalne | I9: Nõrk | M9: Mäkivastus | O9: =+(Traktor!C6+O11)*9.81/1000*SIN(RADIANS(G8)) -> 0 | P9: kN
B10: Kerge | C10: 16 | F10: Hea | I10: Hea | M10: Työleveys | O10: =+(10+C12*2)*0.0254*D8 -> 1.0668 | P10: m
C11: 18 | I11: Suurepärane | M11: Auran massa | O11: =+D8*350 -> 1050 | P11: kg
B12: 2 | C12: 2 | F12: 2 | I12: 2
B14: Käik | C14: Nimikiirus, km/h | D14: Vajalik veojõud kN | E14: Nühamus, % | F14: Moot. Pöörded, 1/min | G14: Kütusekulu, l/h | H14: Liikumiskiirus, km/h | I14: Jõudlus, ha/h | J14: Kütusekulu, l/ha | N14: Välityssuhde | O14: Kehävoima | P14: Akselimomentti | Q14: Moottorimom. | R14: PA g/kWh | S14: P kW | T14: μ | U14: Kehän. km/h
A15: =+IF(F15=0,"Mootor seisukus!"," ") ->  | B15: =+Traktor!C21 -> 1 | C15: =+Traktor!D21 -> 2.1 | D15: =+kynto($B$12,C15,$O$10,$E$8/100) -> 9.356305392 | E15: =+IF(AND(F15>0,Luisto($F$12,T15)<100),Luisto($F$12,T15),"") -> 8.786511431 | F15: =+Piste(Traktor!$C$12:$E$17,Q15,1) -> 2345.771703 | G15: =IF(F15>1000,Piste(Traktor!$C$12:$E$16,Q15,2),"") -> 8.192874732 | H15: =+IF(AND(E15<100,F15>0),U15*(1-E15/100),"") -> 2.042402922 | I15: =+IF(F15>0,H15*$O$10/10,"") -> 0.2178835438 | J15: =+IF(F15>0,G15/I15,"") -> 37.60208132 | K15: =+IF(ISNUMBER(E15),LOOKUP(E15,$W$15:$W$18,$X$15:$X$18),"") -> Nühamus OK! | N15: =+Traktor!E21 -> 293.8376489 | O15: =+D15+$O$8+$O$9 -> 12.99091039 | P15: =+O15*Traktor!$C$7 -> 9.665237332 | Q15: =+P15/N15*1000 -> 32.89312098 | R15: =+IF(F15>0,G15*Traktor!$F$5*1000/S15,0) -> 851.7186504 | S15: =+Q15*(F15*2*PI()/60)/1000 -> 8.080150378 | T15: =+IF(F15>0,O15/((Traktor!$C$6+$H$8+($I$12-1)*0.15*$O$11)*9.81/1000),0) -> 0.3034838602 | U15: =+F15/N15*2*PI()/60*Traktor!$C$7*3.6 -> 2.239145717 | W15: 0 | X15: Nühamus OK!
A16: =+IF(F16=0,"Mootor seisukus!"," ") ->  | B16: =+Traktor!C22 -> 2 | C16: =+Traktor!D22 -> 2.6 | D16: 9.566891712 | E16: =+IF(AND(F16>0,Luisto($F$12,T16)<100),Luisto($F$12,T16),"") -> 9.068231087 | F16: =+Piste(Traktor!$C$12:$E$17,Q16,1) -> 2341.840288 | G16: =IF(F16>1000,Piste(Traktor!$C$12:$E$16,Q16,2),"") -> 8.75899848 | H16: =+IF(AND(E16<100,F16>0),U16*(1-E16/100),"") -> 2.516654399 | I16: =+IF(F16>0,H16*$O$10/10,"") -> 0.2684766913 | J16: =+IF(F16>0,G16/I16,"") -> 32.62480045 | K16: =+IF(ISNUMBER(E16),LOOKUP(E16,$W$15:$W$18,$X$15:$X$18),"") -> Nühamus OK! | N16: =+Traktor!E22 -> 237.3304087 | O16: 13.20149671 | P16: =+O16*Traktor!$C$7 -> 9.821913554 | Q16: 41.3849772 | R16: =+IF(F16>0,G16*Traktor!$F$5*1000/S16,0) -> 724.9451114 | S16: 10.14912523 | T16: =+IF(F16>0,O16/((Traktor!$C$6+$H$8+($I$12-1)*0.15*$O$11)*9.81/1000),0) -> 0.3084034191 | U16: =+F16/N16*2*PI()/60*Traktor!$C$7*3.6 -> 2.767629432 | W16: 20 | X16: Rööbaste tekke oht!
B17: =+Traktor!C23 -> 3 | C17: =+Traktor!D23 -> 3.7 | D17: 10.18789733 | E17: =+IF(AND(F17>0,Luisto($F$12,T17)<100),Luisto($F$12,T17),"") -> 9.952701846 | F17: =+Piste(Traktor!$C$12:$E$17,Q17,1) -> 2333.027137 | G17: =IF(F17>1000,Piste(Traktor!$C$12:$E$16,Q17,2),"") -> 9.966962767 | H17: 3.533210563 | I17: 0.3769229028 | J17: 26.44297466 | K17: =+IF(ISNUMBER(E17),LOOKUP(E17,$W$15:$W$18,$X$15:$X$18),"") -> Nühamus OK! | N17: =+Traktor!E23 -> 166.7727196 | O17: 13.82250233 | P17: =+O17*Traktor!$C$7 -> 10.28394173 | Q17: 61.66441223 | R17: =+IF(F17>0,G17*Traktor!$F$5*1000/S17,0) -> 555.7239543 | S17: 15.06548109 | T17: =+IF(F17>0,O17/((Traktor!$C$6+$H$8+($I$12-1)*0.15*$O$11)*9.81/1000),0) -> 0.3229108844 | U17: =+F17/N17*2*PI()/60*Traktor!$C$7*3.6 -> 3.923727458 | W17: 30 | X17: Suur nühamus!
B18: =+Traktor!C24 -> 4 | C18: =+Traktor!D24 -> 4.5 | D18: 10.7757468 | E18: =+IF(AND(F18>0,Luisto($F$12,T18)<100),Luisto($F$12,T18),"") -> 10.86929629 | F18: =+Piste(Traktor!$C$12:$E$17,Q18,1) -> 2326.618463 | G18: =IF(F18>1000,Piste(Traktor!$C$12:$E$16,Q18,2),"") -> 10.75803345 | H18: 4.241723336 | I18: 0.4525070455 | J18: 23.77428939 | K18: Nühamus OK! | N18: =+Traktor!E24 -> 137.1242361 | O18: 14.4103518 | P18: =+O18*Traktor!$C$7 -> 10.72130174 | Q18: 78.18677457 | R18: =+IF(F18>0,G18*Traktor!$F$5*1000/S18,0) -> 474.3786017 | S18: 19.04965373 | T18: =+IF(F18>0,O18/((Traktor!$C$6+$H$8+($I$12-1)*0.15*$O$11)*9.81/1000),0) -> 0.3366437808 | U18: =+F18/N18*2*PI()/60*Traktor!$C$7*3.6 -> 4.758992311 | W18: 100
B19: =+Traktor!C25 -> 5 | C19: =+Traktor!D25 -> 5.5 | D19: 11.6718588 | E19: =+IF(AND(F19>0,Luisto($F$12,T19)<100),Luisto($F$12,T19),"") -> 12.43154937 | F19: =+Piste(Traktor!$C$12:$E$17,Q19,1) -> 2317.574152 | G19: =IF(F19>1000,Piste(Traktor!$C$12:$E$16,Q19,2),"") -> 11.87444067 | H19: 5.073659441 | I19: 0.5412579892 | J19: 21.93859658 | K19: Nühamus OK! | N19: =+Traktor!E25 -> 112.1925568 | O19: 15.3064638 | P19: =+O19*Traktor!$C$7 -> 11.38800907 | Q19: 101.5041406 | R19: =+IF(F19>0,G19*Traktor!$F$5*1000/S19,0) -> 404.8987472 | S19: 24.63462837 | T19: =+IF(F19>0,O19/((Traktor!$C$6+$H$8+($I$12-1)*0.15*$O$11)*9.81/1000),0) -> 0.3575780742 | U19: =+F19/N19*2*PI()/60*Traktor!$C$7*3.6 -> 5.793935379
B20: =+Traktor!C26 -> 6 | C20: =+Traktor!D26 -> 6.7 | D20: 12.98376677 | E20: =+IF(AND(F20>0,Luisto($F$12,T20)<100),Luisto($F$12,T20),"") -> 15.13252321 | F20: =+Piste(Traktor!$C$12:$E$17,Q20,1) -> 2304.873305 | G20: =IF(F20>1000,Piste(Traktor!$C$12:$E$16,Q20,2),"") -> 13.44220138 | H20: 5.957176535 | I20: 0.6355115927 | J20: 21.15177997 | K20: Nühamus OK! | N20: =+Traktor!E26 -> 92.09836756 | O20: 16.61837177 | P20: =+O20*Traktor!$C$7 -> 12.3640686 | Q20: 134.2485098 | R20: =+IF(F20>0,G20*Traktor!$F$5*1000/S20,0) -> 348.4693088 | S20: 32.40299467 | T20: =+IF(F20>0,O20/((Traktor!$C$6+$H$8+($I$12-1)*0.15*$O$11)*9.81/1000),0) -> 0.3882258796 | U20: =+F20/N20*2*PI()/60*Traktor!$C$7*3.6 -> 7.019386884
B21: =+Traktor!C27 -> 7 | C21: =+Traktor!D27 -> 8 | D21: 14.6962368 | E21: =+IF(AND(F21>0,Luisto($F$12,T21)<100),Luisto($F$12,T21),"") -> 19.55997029 | F21: =+Piste(Traktor!$C$12:$E$17,Q21,1) -> 2288.362747 | G21: =IF(F21>1000,Piste(Traktor!$C$12:$E$16,Q21,2),"") -> 15.48022342 | H21: 6.69367154 | I21: 0.7140808799 | J21: 21.6785295 | K21: Nühamus OK! | N21: =+Traktor!E27 -> 77.13238283 | O21: 18.3308418 | P21: =+O21*Traktor!$C$7 -> 13.6381463 | Q21: 176.8147929 | R21: =+IF(F21>0,G21*Traktor!$F$5*1000/S21,0) -> 306.8911938 | S21: 42.37132878 | T21: =+IF(F21>0,O21/((Traktor!$C$6+$H$8+($I$12-1)*0.15*$O$11)*9.81/1000),0) -> 0.4282313142 | U21: =+F21/N21*2*PI()/60*Traktor!$C$7*3.6 -> 8.32131908
B22: =+Traktor!C28 -> 8 | C22: =+Traktor!D28 -> 8.7 | D22: 15.74379173 | E22: =+IF(AND(F22>0,Luisto($F$12,T22)<100),Luisto($F$12,T22),"") -> 22.88488582 | F22: =+Piste(Traktor!$C$12:$E$17,Q22,1) -> 2278.099516 | G22: =IF(F22>1000,Piste(Traktor!$C$12:$E$16,Q22,2),"") -> 16.74709096 | H22: 6.947183488 | I22: 0.7411255345 | J22: 22.59683438 | K22: Rööbaste tekke oht! | N22: =+Traktor!E28 -> 70.92632904 | O22: 19.37839673 | P22: =+O22*Traktor!$C$7 -> 14.41752717 | Q22: 203.2746846 | R22: =+IF(F22>0,G22*Traktor!$F$5*1000/S22,0) -> 290.0908693 | S22: 48.49362008 | T22: =+IF(F22>0,O22/((Traktor!$C$6+$H$8+($I$12-1)*0.15*$O$11)*9.81/1000),0) -> 0.4527035031 | U22: =+F22/N22*2*PI()/60*Traktor!$C$7*3.6 -> 9.008848087
B23: =+Traktor!C29 -> 9 | C23: =+Traktor!D29 -> 9.6 | D23: 17.21968819 | E23: =+IF(AND(F23>0,Luisto($F$12,T23)<100),Luisto($F$12,T23),"") -> 28.55013069 | F23: =+Piste(Traktor!$C$12:$E$17,Q23,1) -> 2230.671148 | G23: =IF(F23>1000,Piste(Traktor!$C$12:$E$16,Q23,2),"") -> 18.24621538 | H23: 6.954814341 | I23: 0.7419395939 | J23: 24.59258885 | K23: Rööbaste tekke oht! | N23: =+Traktor!E29 -> 64.27698569 | O23: 20.85429319 | P23: =+O23*Traktor!$C$7 -> 15.51559413 | Q23: 241.3864615 | R23: =+IF(F23>0,G23*Traktor!$F$5*1000/S23,0) -> 271.8159934 | S23: 56.38675168 | T23: =+IF(F23>0,O23/((Traktor!$C$6+$H$8+($I$12-1)*0.15*$O$11)*9.81/1000),0) -> 0.4871822842 | U23: =+F23/N23*2*PI()/60*Traktor!$C$7*3.6 -> 9.733837736
B24: =+Traktor!C30 -> 10 | C24: =+Traktor!D30 -> 10.5 | D24: 18.8407548 | E24: =+IF(AND(F24>0,Luisto($F$12,T24)<100),Luisto($F$12,T24),"") -> 36.4012177 | F24: =+Piste(Traktor!$C$12:$E$17,Q24,1) -> 2028.779159 | G24: =IF(F24>1000,Piste(Traktor!$C$12:$E$16,Q24,2),"") -> 18.11511664 | H24: 6.158149013 | I24: 0.6569513367 | J24: 27.57451827 | K24: Suur nühamus! | N24: =+Traktor!E30 -> 58.76752978 | O24: 22.4753598 | P24: =+O24*Traktor!$C$7 -> 16.72166769 | Q24: 284.5392303 | R24: =+IF(F24>0,G24*Traktor!$F$5*1000/S24,0) -> 251.7183495 | S24: 60.45128615 | T24: =+IF(F24>0,O24/((Traktor!$C$6+$H$8+($I$12-1)*0.15*$O$11)*9.81/1000),0) -> 0.5250524209 | U24: =+F24/N24*2*PI()/60*Traktor!$C$7*3.6 -> 9.682809623
A25: =+IF(F25=0,"Mootor seiskus!"," ") -> Mootor seiskus! | B25: =+Traktor!C31 -> 11 | C25: =+Traktor!D31 -> 14 | D25: 26.5249152 | E25: =+IF(AND(F25>0,Luisto($F$12,T25)<100),Luisto($F$12,T25),"") ->  | F25: =+Piste(Traktor!$C$12:$E$17,Q25,1) -> 0 | G25: =IF(F25>1000,Piste(Traktor!$C$12:$E$16,Q25,2),"") ->  | N25: =+Traktor!E31 -> 44.07564733 | O25: 30.1595202 | P25: =+O25*Traktor!$C$7 -> 22.43868303 | Q25: 509.0948038 | R25: =+IF(F25>0,G25*Traktor!$F$5*1000/S25,0) -> 0 | S25: 0 | T25: =+IF(F25>0,O25/((Traktor!$C$6+$H$8+($I$12-1)*0.15*$O$11)*9.81/1000),0) -> 0 | U25: =+F25/N25*2*PI()/60*Traktor!$C$7*3.6 -> 0
A26: =+IF(F26=0,"Mootor seiskus!"," ") -> Mootor seiskus! | B26: =+Traktor!C32 -> 12 | C26: =+Traktor!D32 -> 16.9 | D26: 34.55497483 | E26: =+IF(AND(F26>0,Luisto($F$12,T26)<100),Luisto($F$12,T26),"") ->  | F26: =+Piste(Traktor!$C$12:$E$17,Q26,1) -> 0 | G26: =IF(F26>1000,Piste(Traktor!$C$12:$E$16,Q26,2),"") ->  | N26: =+Traktor!E32 -> 36.51237057 | O26: 38.18957983 | P26: =+O26*Traktor!$C$7 -> 28.4130474 | Q26: 778.1759155 | R26: =+IF(F26>0,G26*Traktor!$F$5*1000/S26,0) -> 0 | S26: 0 | T26: =+IF(F26>0,O26/((Traktor!$C$6+$H$8+($I$12-1)*0.15*$O$11)*9.81/1000),0) -> 0 | U26: =+F26/N26*2*PI()/60*Traktor!$C$7*3.6 -> 0

Sheet Kultivaator
B1: S-piiga kultivaator
C3: =+C9 -> 4.8 | D3: =+D6 -> 11 | E3: =+E6 -> 10 | G3: =+G6 -> 2 | H3: =+H6 -> 937
B4: Mulla seisund | C4: Töölaius, m | D4: Reavahe, cm | E4: Töösügavus, cm | F4: Mullal sõidetavus | G4: Kalle ˚ | H4: Lisaraskus, kg | L4: Tuloksia
L5: f | N5: =+IF(F9=1,0.15,IF(F9=2,0.1,0.07)) -> 0.1
B6: Kerge muld | C6: 48 | D6: 11 | E6: 10 | F6: Halb | G6: 2 | H6: 937 | L6: Tr kulkuvastus | N6: =+Traktor!C6*9.81/1000*N5 -> 3.634605 | O6: kN
B7: Raske muld | F7: Normaalne | L7: Tr mäkivastus | N7: =+Traktor!C6*9.81/1000*SIN(RADIANS(G6)) -> 1.268458852 | O7: kN
F8: Hea | L8: Työleveys | N8: =+C9 -> 4.8 | O8: m
B9: 1 | C9: =+C6/10 -> 4.8 | F9: 2
B11: Käik | C11: Nimikiirus km/h | D11: Vajalik veojõud kN | E11: Nühamus % | F11: Pöörded 1/min | G11: Kütusekulu l/h | H11: Liikumiskiirus km/h | I11: Jõudlus ha/h | J11: Kütusekulu l/ha | T11: Vetohyötysuhde | U11: Kehän. km/h | V11: Välityssuhde | W11: Kehävoima | X11: Akselimomentti | Y11: Moottorimom. | Z11: PA g/kWh | AA11: P kW | AB11: μ
A12: =+IF(F12=0,"Mootor seiskus!"," ") ->  | B12: =+Traktor!C21 -> 1 | C12: =+Traktor!D21 -> 2.1 | D12: =+spiikki($B$9,C12,+$C$9/($D$6/100),$E$6,$C$9) -> 11.84334545 | E12: =+IF(AND(F12>0,Luisto($F$9,AB12)<100),Luisto($F$9,AB12),"") -> 13.26943988 | F12: =+Piste(Traktor!$C$12:$E$17,Y12,1) -> 2341.369406 | G12: =IF(F12>1000,Piste(Traktor!$C$12:$E$16,Y12,2),"") -> 8.826805567 | H12: =+IF(AND(E12<100,F12>0),U12*(1-E12/100),"") -> 1.938379036 | I12: =+IF(ISNUMBER(H12),H12*$N$8/10,"") -> 0.9304219375 | J12: =+IF(ISNUMBER(I12),G12/I12,"") -> 9.486884618 | K12: =+IF(ISNUMBER(E12),LOOKUP(E12,$Q$12:$Q$15,$R$12:$R$15),"") -> Nühamus OK! | Q12: 0 | R12: Nühamus OK! | T12: =+(1-E12/100)*(1-$N$5/AB12)*100 -> 63.14617311 | U12: =+F12/V12*2*PI()/60*Traktor!$C$7*3.6 -> 2.234943524 | V12: =+Traktor!E21 -> 293.8376489 | W12: =+D12+$N$6+$N$7 -> 16.74640931 | X12: =+W12*Traktor!$C$7 -> 12.45932852 | Y12: =+X12/V12*1000 -> 42.4020835 | Z12: =+IF(F12>0,G12*Traktor!$F$5*1000/AA12,0) -> 713.1766115 | AA12: =+Y12*(F12*2*PI()/60)/1000 -> 10.3964664 | AB12: =+IF(F12>0,W12/((Traktor!$C$6+$H$6)*9.81/1000),0) -> 0.3677456619
A13: =+IF(F13=0,"Mootor seiskus!"," ") ->  | B13: =+Traktor!C22 -> 2 | C13: =+Traktor!D22 -> 2.6 | D13: 12.02007273 | E13: =+IF(AND(F13>0,Luisto($F$9,AB13)<100),Luisto($F$9,AB13),"") -> 13.60394503 | F13: =+Piste(Traktor!$C$12:$E$17,Y13,1) -> 2336.438965 | G13: =IF(F13>1000,Piste(Traktor!$C$12:$E$16,Y13,2),"") -> 9.536788981 | H13: =+IF(AND(E13<100,F13>0),U13*(1-E13/100),"") -> 2.385607655 | I13: 1.145091675 | J13: =+IF(ISNUMBER(I13),G13/I13,"") -> 8.328406531 | K13: =+IF(ISNUMBER(E13),LOOKUP(E13,$Q$12:$Q$15,$R$12:$R$15),"") -> Nühamus OK! | Q13: 20 | R13: Rööbaste tekke oht! | T13: 63.14796937 | U13: =+F13/V13*2*PI()/60*Traktor!$C$7*3.6 -> 2.76124605 | V13: =+Traktor!E22 -> 237.3304087 | W13: 16.92313658 | X13: =+W13*Traktor!$C$7 -> 12.59081362 | Y13: 53.05183471 | Z13: =+IF(F13>0,G13*Traktor!$F$5*1000/AA13,0) -> 617.1603162 | AA13: 12.98026223 | AB13: =+IF(F13>0,W13/((Traktor!$C$6+$H$6)*9.81/1000),0) -> 0.3716265349
B14: =+Traktor!C23 -> 3 | C14: =+Traktor!D23 -> 3.7 | D14: 12.40887273 | E14: =+IF(AND(F14>0,Luisto($F$9,AB14)<100),Luisto($F$9,AB14),"") -> 14.36983821 | F14: =+Piste(Traktor!$C$12:$E$17,Y14,1) -> 2326.989056 | G14: =IF(F14>1000,Piste(Traktor!$C$12:$E$16,Y14,2),"") -> 10.71228846 | H14: 3.351198466 | I14: 1.608575264 | J14: 6.659488493 | K14: Nühamus OK! | Q14: 30 | R14: Suur nühamus! | T14: 63.10565679 | U14: =+F14/V14*2*PI()/60*Traktor!$C$7*3.6 -> 3.913572502 | V14: =+Traktor!E23 -> 166.7727196 | W14: 17.31193658 | X14: =+W14*Traktor!$C$7 -> 12.88008082 | Y14: 77.23134121 | Z14: =+IF(F14>0,G14*Traktor!$F$5*1000/AA14,0) -> 478.1289157 | AA14: 18.81986638 | AB14: =+IF(F14>0,W14/((Traktor!$C$6+$H$6)*9.81/1000),0) -> 0.3801644555
B15: =+Traktor!C24 -> 4 | C15: =+Traktor!D24 -> 4.5 | D15: 12.69163636 | E15: =+IF(AND(F15>0,Luisto($F$9,AB15)<100),Luisto($F$9,AB15),"") -> 14.95379842 | F15: =+Piste(Traktor!$C$12:$E$17,Y15,1) -> 2319.916912 | G15: =IF(F15>1000,Piste(Traktor!$C$12:$E$16,Y15,2),"") -> 11.58525614 | H15: 4.035684301 | I15: 1.937128464 | J15: 5.980633891 | K15: Nühamus OK! | Q15: 100 | T15: 63.03482554 | U15: =+F15/V15*2*PI()/60*Traktor!$C$7*3.6 -> 4.745284593 | V15: =+Traktor!E24 -> 137.1242361 | W15: 17.59470022 | X15: =+W15*Traktor!$C$7 -> 13.09045696 | Y15: 95.46421062 | Z15: =+IF(F15>0,G15*Traktor!$F$5*1000/AA15,0) -> 419.6075479 | AA15: 23.19218329 | AB15: =+IF(F15>0,W15/((Traktor!$C$6+$H$6)*9.81/1000),0) -> 0.3863738523
B16: =+Traktor!C25 -> 5 | C16: =+Traktor!D25 -> 5.5 | D16: 13.04509091 | E16: =+IF(AND(F16>0,Luisto($F$9,AB16)<100),Luisto($F$9,AB16),"") -> 15.71723246 | F16: =+Piste(Traktor!$C$12:$E$17,Y16,1) -> 2310.779191 | G16: =IF(F16>1000,Piste(Traktor!$C$12:$E$16,Y16,2),"") -> 12.7131936 | H16: 4.868971635 | I16: 2.337106385 | J16: 5.439715401 | K16: Nühamus OK! | T16: 62.89856173 | U16: =+F16/V16*2*PI()/60*Traktor!$C$7*3.6 -> 5.776947978 | V16: =+Traktor!E25 -> 112.1925568 | W16: 17.94815476 | X16: =+W16*Traktor!$C$7 -> 13.35342714 | Y16: 119.0223979 | Z16: =+IF(F16>0,G16*Traktor!$F$5*1000/AA16,0) -> 370.7816092 | AA16: 28.80154343 | AB16: =+IF(F16>0,W16/((Traktor!$C$6+$H$6)*9.81/1000),0) -> 0.3941355984
B17: =+Traktor!C26 -> 6 | C17: =+Traktor!D26 -> 6.7 | D17: 13.46923636 | E17: =+IF(AND(F17>0,Luisto($F$9,AB17)<100),Luisto($F$9,AB17),"") -> 16.68497429 | F17: =+Piste(Traktor!$C$12:$E$17,Y17,1) -> 2299.377531 | G17: =IF(F17>1000,Piste(Traktor!$C$12:$E$16,Y17,2),"") -> 14.12058604 | H17: 5.834259442 | I17: 2.800444532 | J17: 5.042265926 | K17: Nühamus OK! | T17: 62.66436541 | U17: =+F17/V17*2*PI()/60*Traktor!$C$7*3.6 -> 7.002649753 | V17: =+Traktor!E26 -> 92.09836756 | W17: 18.37230022 | X17: =+W17*Traktor!$C$7 -> 13.66899136 | Y17: 148.4173034 | Z17: =+IF(F17>0,G17*Traktor!$F$5*1000/AA17,0) -> 331.9010068 | AA17: 35.73743988 | AB17: =+IF(F17>0,W17/((Traktor!$C$6+$H$6)*9.81/1000),0) -> 0.4034496936
B18: =+Traktor!C27 -> 7 | C18: =+Traktor!D27 -> 8 | D18: 13.92872727 | E18: =+IF(AND(F18>0,Luisto($F$9,AB18)<100),Luisto($F$9,AB18),"") -> 17.80071565 | F18: =+Piste(Traktor!$C$12:$E$17,Y18,1) -> 2286.488503 | G18: =IF(F18>1000,Piste(Traktor!$C$12:$E$16,Y18,2),"") -> 15.71157535 | H18: 6.834462497 | I18: 3.280541998 | J18: 4.789323032 | K18: Nühamus OK! | T18: 62.32229745 | U18: =+F18/V18*2*PI()/60*Traktor!$C$7*3.6 -> 8.314503649 | V18: =+Traktor!E27 -> 77.13238283 | W18: 18.83179112 | X18: =+W18*Traktor!$C$7 -> 14.0108526 | Y18: 181.646827 | Z18: =+IF(F18>0,G18*Traktor!$F$5*1000/AA18,0) -> 303.4405121 | AA18: 43.49361001 | AB18: =+IF(F18>0,W18/((Traktor!$C$6+$H$6)*9.81/1000),0) -> 0.4135399634
B19: =+Traktor!C28 -> 8 | C19: =+Traktor!D28 -> 8.7 | D19: 14.17614545 | E19: =+IF(AND(F19>0,Luisto($F$9,AB19)<100),Luisto($F$9,AB19),"") -> 18.43209291 | F19: =+Piste(Traktor!$C$12:$E$17,Y19,1) -> 2279.316836 | G19: =IF(F19>1000,Piste(Traktor!$C$12:$E$16,Y19,2),"") -> 16.596828 | H19: 7.352255474 | I19: 3.529082627 | J19: 4.70287317 | K19: Nühamus OK! | T19: 62.09938025 | U19: =+F19/V19*2*PI()/60*Traktor!$C$7*3.6 -> 9.013662035 | V19: =+Traktor!E28 -> 70.92632904 | W19: 19.07920931 | X19: =+W19*Traktor!$C$7 -> 14.19493172 | Y19: 200.1362811 | Z19: =+IF(F19>0,G19*Traktor!$F$5*1000/AA19,0) -> 291.8402828 | AA19: 47.77042905 | AB19: =+IF(F19>0,W19/((Traktor!$C$6+$H$6)*9.81/1000),0) -> 0.4189731856
B20: =+Traktor!C29 -> 9 | C20: =+Traktor!D29 -> 9.6 | D20: 14.49425455 | E20: =+IF(AND(F20>0,Luisto($F$9,AB20)<100),Luisto($F$9,AB20),"") -> 19.27688027 | F20: =+Piste(Traktor!$C$12:$E$17,Y20,1) -> 2261.805323 | G20: =IF(F20>1000,Piste(Traktor!$C$12:$E$16,Y20,2),"") -> 17.68407056 | H20: 7.967126482 | I20: 3.824220711 | J20: 4.624228541 | K20: Nühamus OK! | T20: 61.77219587 | U20: =+F20/V20*2*PI()/60*Traktor!$C$7*3.6 -> 9.869695954 | V20: =+Traktor!E29 -> 64.27698569 | W20: 19.3973184 | X20: =+W20*Traktor!$C$7 -> 14.43160489 | Y20: 224.5221168 | Z20: =+IF(F20>0,G20*Traktor!$F$5*1000/AA20,0) -> 279.3306277 | AA20: 53.17934303 | AB20: =+IF(F20>0,W20/((Traktor!$C$6+$H$6)*9.81/1000),0) -> 0.425958757
B21: =+Traktor!C30 -> 10 | C21: =+Traktor!D30 -> 10.5 | D21: 14.81236364 | E21: =+IF(AND(F21>0,Luisto($F$9,AB21)<100),Luisto($F$9,AB21),"") -> 20.16038628 | F21: =+Piste(Traktor!$C$12:$E$17,Y21,1) -> 2215.510751 | G21: =IF(F21>1000,Piste(Traktor!$C$12:$E$16,Y21,2),"") -> 18.51994477 | H21: 8.442263578 | I21: =+IF(ISNUMBER(H21),H21*$N$8/10,"") -> 4.052286518 | J21: 4.570245634 | K21: Rööbaste tekke oht! | T21: 61.39853285 | U21: =+F21/V21*2*PI()/60*Traktor!$C$7*3.6 -> 10.57402859 | V21: =+Traktor!E30 -> 58.76752978 | W21: 19.71542749 | X21: =+W21*Traktor!$C$7 -> 14.66827805 | Y21: 249.598343 | Z21: =+IF(F21>0,G21*Traktor!$F$5*1000/AA21,0) -> 268.6425464 | AA21: 57.90874829 | AB21: =+IF(F21>0,W21/((Traktor!$C$6+$H$6)*9.81/1000),0) -> 0.4329443285
A22: Mootor seiskus! | B22: =+Traktor!C31 -> 11 | C22: =+Traktor!D31 -> 14 | D22: 16.04945455 | E22: =+IF(AND(F22>0,Luisto($F$9,AB22)<100),Luisto($F$9,AB22),"") ->  | F22: =+Piste(Traktor!$C$12:$E$17,Y22,1) -> 0 | G22: =IF(F22>1000,Piste(Traktor!$C$12:$E$16,Y22,2),"") ->  | I22: =+IF(ISNUMBER(H22),H22*$N$8/10,"") ->  | U22: =+F22/V22*2*PI()/60*Traktor!$C$7*3.6 -> 0 | V22: =+Traktor!E31 -> 44.07564733 | W22: 20.9525184 | X22: =+W22*Traktor!$C$7 -> 15.58867369 | Y22: 353.6799714 | Z22: =+IF(F22>0,G22*Traktor!$F$5*1000/AA22,0) -> 0 | AA22: 0 | AB22: =+IF(F22>0,W22/((Traktor!$C$6+$H$6)*9.81/1000),0) -> 0
A23: Mootor seiskus! | B23: =+Traktor!C32 -> 12 | C23: =+Traktor!D32 -> 16.9 | D23: 17.07447273 | E23: =+IF(AND(F23>0,Luisto($F$9,AB23)<100),Luisto($F$9,AB23),"") ->  | F23: =+Piste(Traktor!$C$12:$E$17,Y23,1) -> 0 | G23: =IF(F23>1000,Piste(Traktor!$C$12:$E$16,Y23,2),"") ->  | U23: =+F23/V23*2*PI()/60*Traktor!$C$7*3.6 -> 0 | V23: =+Traktor!E32 -> 36.51237057 | W23: 21.97753658 | X23: =+W23*Traktor!$C$7 -> 16.35128722 | Y23: 447.8286937 | Z23: =+IF(F23>0,G23*Traktor!$F$5*1000/AA23,0) -> 0 | AA23: 0 | AB23: =+IF(F23>0,W23/((Traktor!$C$6+$H$6)*9.81/1000),0) -> 0

Sheet Instruktsioon
A2: Esmalt sisestage traktori andmed. Andmed sisestatakse rohelistesse lahtritesse. Ülejäänud arvutatakse programmi poolt automaatselt.
A3: Traktori andmeid leiate testide raportitest (vaata allolevaid linke) või ajakirjadest. Kokku on vaja sisse kanda 5 punkti traktori võimsuskõveralt.
A4: - Mmax = mootori maksimaalne pöördemoment.
A5: - Pmax/P80% = maksimaalne võimsuspunkt, juhul kui see erineb nimivõimsusest. Vastasel juhul punkt maksimaalnse pöördemomendi ja nimivõimsuse vahelt.
A6: - Prated = võimsus pööretel kui jõuvõtuvõlli(PTO) kiirus on saavutatud.
A7: - P85% = võimsuspunkt 85% pöördemomendi juures nimivõimsusel või selle lähedal.
A8: - P25% = võimsuspunkt 25% pöördemomendi juures nimivõimsusel või selle lähedal.
A9: - P0 = Maksimaalsetel pööretel ilma koormuseta.
A11: Näide. CASE IH CX 90 DIESEL
A12: Mootori väärtused võetuna jooniselt.
B13: M Nm | C13: r/min | D13: l/h | F13: Märkus
A14: Mmax | B14: 319 | C14: 1400 | D14: 14.1 | F14: Kütusekuluks märgitakse väikseim sellele grupile spetsiifiline väärtus
A15: Pmax | B15: 289 | C15: 2000 | D15: 18
A16: Prated | B16: 258 | C16: 2200 | D16: 18.8
A17: P85% | B17: 219 | C17: 2272 | D17: 17.5
A18: P25% | B18: 54 | C18: 2336 | D18: 9.6
A19: P0 | B19: 0 | C19: 2361 | D19: 6
B23: Võimsuse kalkulaatorid
B24: n | C24: 2336 | D24: 1/min | F24: n | G24: 1400 | H24: 1/min | J24: n | K24: 2336 | L24: 1/min
B25: P | C25: 13.3 | D25: kW | F25: M | G25: 319 | H25: Nm | J25: M | K25: 54 | L25: Nm
B26: Q | C26: 18.8 | D26: l/h | F26: Q | G26: 16 | H26: l/h | J26: Qspec | K26: 600 | L26: g/kWh
B27: M | C27: =+C25*1000/(C24*2*PI()/60) -> 54.3688547 | D27: Nm | F27: P | G27: 55 | H27: kW | J27: P | K27: =+K24*K25*PI()/30/1000 -> 13.20976879 | L27: kW
B28: Qspec | C28: =+IF(C26*0.835/C25*1000<190,"Virhe arvoissa",C26*0.835/C25*1000) -> 1180.300752 | D28: g/kWh | F28: Qspec | G28: =+IF(G26*0.835/G27*1000<190,"--",G26*0.835/G27*1000) -> 242.9090909 | H28: g/kWh | J28: Q | K28: =+K26/1000/0.83*K27 -> 9.54923045 | L28: l/h
B30: n | C30: 2336 | D30: 1/min
B31: P | C31: 13.3 | D31: kW
B32: Qspec | C32: 600 | D32: g/kWh
B33: M | C33: =+C31*1000/(C30*PI()/30) -> 54.3688547 | D33: Nm
B34: Q | C34: =+C31*C32/1000/0.83 -> 9.614457831 | D34: l/h
B37: Traktorite testide raportid | O37: http://tractortestlab.unl.edu/IH/Ih90.pdf
B38: http://www2.oecd.org/agr-coddb/index_en.asp
B39: http://tractortestlab.unl.edu/testreports.htm
A55: Ohjelma on elävää elämää yksinkertaisempi. Se ei ota huomioon esimerkiksi lisäpainojen aiheuttamaa mahdollista renkaiden uppoumaa. Arvot myöskin lasketaan vain nelivetoiselle traktorille
A57: Kommentit ja kysymykset | D57: jukka.ahokas@helsinki.fi
A59: Lukitussalasana | C59: akatemia

Sheet Sheet1
